[Event "*** SCC Grand Prix: Titled Tuesday Blitz"]
[Site "Chess.com"]
[Date "2020.07.14"]
[Round "5"]
[White "pavelalexandru07"]
[Black "saraswathii"]
[Result "0-1"]
[WhiteElo "2145"]
[BlackElo "2337"]
[TimeControl "180+1"]
[EndTime "10:56:35 PDT"]
[Termination "saraswathii won on time"]

1. e4 {[%clk 0:03:00.9]} 1... c5 {[%clk 0:02:53.1]} 2. Nf3 {[%clk 0:03:00.6]}
2... e6 {[%clk 0:02:53.3]} 3. d4 {[%clk 0:03:00.7]} 3... cxd4 {[%clk 0:02:53.2]}
4. Nxd4 {[%clk 0:03:01.3]} 4... Nf6 {[%clk 0:02:53.8]} 5. Nc3 {[%clk 0:03:00]}
5... Nc6 {[%clk 0:02:53.6]} 6. Ndb5 {[%clk 0:02:59.2]} 6... Bb4 {[%clk
0:02:48.7]} 7. a3 {[%clk 0:02:58.1]} 7... Bxc3+ {[%clk 0:02:48.7]} 8. Nxc3
{[%clk 0:02:59]} 8... d5 {[%clk 0:02:48.6]} 9. exd5 {[%clk 0:02:51.8]} 9... exd5
{[%clk 0:02:48.2]} 10. Bd3 {[%clk 0:02:51.3]} 10... d4 {[%clk 0:02:47.6]} 11.
Ne2 {[%clk 0:02:46.4]} 11... O-O {[%clk 0:02:43.4]} 12. O-O {[%clk 0:02:46.1]}
12... h6 {[%clk 0:02:43.7]} 13. Ng3 {[%clk 0:02:40]} 13... Qd5 {[%clk 0:02:43]}
14. Re1 {[%clk 0:02:33.5]} 14... Bg4 {[%clk 0:02:39.5]} 15. f3 {[%clk
0:02:28.2]} 15... Be6 {[%clk 0:02:38.9]} 16. Ne4 {[%clk 0:02:01.6]} 16... Nh7
{[%clk 0:02:13.1]} 17. Bf4 {[%clk 0:01:52.4]} 17... Rad8 {[%clk 0:02:07.6]} 18.
Qe2 {[%clk 0:01:41.1]} 18... Rfe8 {[%clk 0:02:04.7]} 19. Qf2 {[%clk 0:01:37.5]}
19... Kh8 {[%clk 0:01:46.9]} 20. Rad1 {[%clk 0:01:36.3]} 20... Nf8 {[%clk
0:01:32.7]} 21. Qh4 {[%clk 0:01:29.4]} 21... Ng6 {[%clk 0:01:30.6]} 22. Qg3
{[%clk 0:01:22.5]} 22... Nce7 {[%clk 0:01:19.5]} 23. Bc1 {[%clk 0:01:12.6]}
23... Nf5 {[%clk 0:01:18]} 24. Qf2 {[%clk 0:01:12.1]} 24... Bd7 {[%clk
0:01:09.8]} 25. Ng3 {[%clk 0:00:42]} 25... Rxe1+ {[%clk 0:00:55.9]} 26. Rxe1
{[%clk 0:00:41.7]} 26... Nfe7 {[%clk 0:00:46.1]} 27. Ne4 {[%clk 0:00:22.3]}
27... Bc6 {[%clk 0:00:43.6]} 28. Qg3 {[%clk 0:00:21.9]} 28... Nf5 {[%clk
0:00:38.2]} 29. Qf2 {[%clk 0:00:22]} 29... Ne5 {[%clk 0:00:33.9]} 30. Ng3 {[%clk
0:00:13.2]} 30... Nxd3 {[%clk 0:00:32.8]} 31. cxd3 {[%clk 0:00:13.8]} 31... Nh4
{[%clk 0:00:25]} 32. Ne4 {[%clk 0:00:13.7]} 32... Ng6 {[%clk 0:00:24.6]} 33. Qc2
{[%clk 0:00:09.5]} 33... b6 {[%clk 0:00:20]} 34. Bd2 {[%clk 0:00:09.5]} 34...
Bb5 {[%clk 0:00:19.8]} 35. Qb1 {[%clk 0:00:09]} 35... Ne5 {[%clk 0:00:19.5]} 36.
Nf2 {[%clk 0:00:07.6]} 36... f6 {[%clk 0:00:19.5]} 37. Bf4 {[%clk 0:00:06.9]}
37... Ng6 {[%clk 0:00:19.3]} 38. Bd2 {[%clk 0:00:06.9]} 38... Qb3 {[%clk
0:00:19.2]} 39. Re4 {[%clk 0:00:04.6]} 39... Ne5 {[%clk 0:00:18.9]} 40. Bf4
{[%clk 0:00:03]} 40... Nxd3 {[%clk 0:00:18.7]} 41. Bg3 {[%clk 0:00:02.4]} 41...
Nxf2 {[%clk 0:00:18.4]} 42. Bxf2 {[%clk 0:00:02.3]} 42... Bd3 {[%clk 0:00:18.5]}
0-1

[Event "*** SCC Grand Prix: Titled Tuesday Blitz"]
[Site "Chess.com"]
[Date "2020.07.14"]
[Round "5"]
[White "Shield12"]
[Black "Firouzja2003"]
[Result "1-0"]
[WhiteElo "2856"]
[BlackElo "3065"]
[TimeControl "180+1"]
[EndTime "10:56:36 PDT"]
[Termination "Shield12 won by resignation"]

1. e4 {[%clk 0:03:00.9]} 1... c5 {[%clk 0:02:59.1]} 2. Nf3 {[%clk 0:03:00.9]}
2... d6 {[%clk 0:02:58.1]} 3. Bb5+ {[%clk 0:03:00.7]} 3... Nd7 {[%clk
0:02:57.4]} 4. Ba4 {[%clk 0:03:00.3]} 4... a6 {[%clk 0:02:54]} 5. c4 {[%clk
0:02:59.6]} 5... e5 {[%clk 0:02:52.1]} 6. Nc3 {[%clk 0:02:57.4]} 6... Ne7 {[%clk
0:02:47.7]} 7. O-O {[%clk 0:02:55.7]} 7... Ng6 {[%clk 0:02:46.5]} 8. a3 {[%clk
0:02:54]} 8... Be7 {[%clk 0:02:43.4]} 9. b4 {[%clk 0:02:53.8]} 9... O-O {[%clk
0:02:41.6]} 10. d3 {[%clk 0:02:54]} 10... Nb6 {[%clk 0:02:37.9]} 11. Bc2 {[%clk
0:02:30.8]} 11... f5 {[%clk 0:02:37]} 12. bxc5 {[%clk 0:02:29.6]} 12... dxc5
{[%clk 0:02:35.8]} 13. h3 {[%clk 0:02:08.3]} 13... f4 {[%clk 0:02:15]} 14. Rb1
{[%clk 0:02:04]} 14... Nd7 {[%clk 0:02:13]} 15. Nd5 {[%clk 0:01:59.2]} 15... Bd6
{[%clk 0:02:03.2]} 16. a4 {[%clk 0:01:56.6]} 16... Ne7 {[%clk 0:01:49.1]} 17.
Bb2 {[%clk 0:01:33.3]} 17... Nc6 {[%clk 0:01:45.7]} 18. Re1 {[%clk 0:01:27.5]}
18... Nd4 {[%clk 0:01:39.7]} 19. Bxd4 {[%clk 0:01:09.5]} 19... exd4 {[%clk
0:01:40.6]} 20. e5 {[%clk 0:01:06.8]} 20... Be7 {[%clk 0:01:39.7]} 21. Qd2
{[%clk 0:00:54.5]} 21... Nb8 {[%clk 0:01:36.5]} 22. Nxf4 {[%clk 0:00:28.5]}
22... Bg5 {[%clk 0:01:31.2]} 23. Nxg5 {[%clk 0:00:28.7]} 23... Qxg5 {[%clk
0:01:32.1]} 24. e6 {[%clk 0:00:21.6]} 24... Nc6 {[%clk 0:01:23.2]} 25. g3 {[%clk
0:00:22]} 25... Ne7 {[%clk 0:00:56.8]} 26. h4 {[%clk 0:00:21.7]} 26... Qf5
{[%clk 0:00:50]} 27. Bd1 {[%clk 0:00:20.5]} 27... Ng6 {[%clk 0:00:39.8]} 28.
Nxg6 {[%clk 0:00:20.3]} 28... hxg6 {[%clk 0:00:39.5]} 29. e7 {[%clk 0:00:16.1]}
29... Re8 {[%clk 0:00:39]} 30. Qg5 {[%clk 0:00:13.2]} 30... Qxd3 {[%clk
0:00:30.8]} 31. Rb6 {[%clk 0:00:11.8]} 31... Bf5 {[%clk 0:00:25.5]} 32. h5
{[%clk 0:00:12.2]} 32... Qc3 {[%clk 0:00:21.2]} 33. Rf1 {[%clk 0:00:12]} 33...
Qd3 {[%clk 0:00:12.5]} 34. hxg6 {[%clk 0:00:11.5]} 34... Bxg6 {[%clk 0:00:13.4]}
35. Rxg6 {[%clk 0:00:10.8]} 35... Rxe7 {[%clk 0:00:13.8]} 36. Qxe7 {[%clk
0:00:10]} 36... Qxg6 {[%clk 0:00:14.4]} 37. Qxb7 {[%clk 0:00:10]} 37... Rd8
{[%clk 0:00:14.2]} 38. Bf3 {[%clk 0:00:09.3]} 38... Qf6 {[%clk 0:00:12.2]} 39.
Bd5+ {[%clk 0:00:08.8]} 39... Kf8 {[%clk 0:00:12.8]} 40. Kg2 {[%clk 0:00:08.7]}
40... g5 {[%clk 0:00:10.7]} 41. Rh1 {[%clk 0:00:08.9]} 41... d3 {[%clk
0:00:10.4]} 42. Rh8+ {[%clk 0:00:08.9]} 1-0

[Event "*** SCC Grand Prix: Titled Tuesday Blitz"]
[Site "Chess.com"]
[Date "2020.07.14"]
[Round "5"]
[White "lucachess49"]
[Black "Onegust"]
[Result "1-0"]
[WhiteElo "2426"]
[BlackElo "2583"]
[TimeControl "180+1"]
[EndTime "10:56:36 PDT"]
[Termination "lucachess49 won by checkmate"]

1. d4 {[%clk 0:03:00.9]} 1... Nf6 {[%clk 0:02:59.7]} 2. c4 {[%clk 0:03:00.6]}
2... e6 {[%clk 0:03:00.1]} 3. Nc3 {[%clk 0:03:00.2]} 3... Bb4 {[%clk 0:03:00.2]}
4. e3 {[%clk 0:02:59.9]} 4... O-O {[%clk 0:02:59.5]} 5. Ne2 {[%clk 0:03:00]}
5... Re8 {[%clk 0:02:56.8]} 6. a3 {[%clk 0:03:00.4]} 6... Bf8 {[%clk 0:02:56.6]}
7. Ng3 {[%clk 0:03:01]} 7... d6 {[%clk 0:02:53]} 8. Be2 {[%clk 0:02:53.6]} 8...
e5 {[%clk 0:02:53.3]} 9. O-O {[%clk 0:02:53.8]} 9... Nc6 {[%clk 0:02:26]} 10. d5
{[%clk 0:02:45.5]} 10... Ne7 {[%clk 0:02:24]} 11. e4 {[%clk 0:02:44.2]} 11...
Ng6 {[%clk 0:02:22.3]} 12. h3 {[%clk 0:02:32.9]} 12... Nf4 {[%clk 0:02:19.5]}
13. Bg4 {[%clk 0:02:28.3]} 13... Nxg4 {[%clk 0:02:08]} 14. hxg4 {[%clk
0:02:27.8]} 14... Qg5 {[%clk 0:02:08.1]} 15. f3 {[%clk 0:02:13.5]} 15... g6
{[%clk 0:01:59.8]} 16. Nge2 {[%clk 0:01:59.8]} 16... Qf6 {[%clk 0:01:55.4]} 17.
Nxf4 {[%clk 0:01:56.8]} 17... exf4 {[%clk 0:01:56.2]} 18. Ne2 {[%clk 0:01:57]}
18... g5 {[%clk 0:01:43.4]} 19. Bd2 {[%clk 0:01:23.4]} 19... Bg7 {[%clk
0:01:13.4]} 20. Bc3 {[%clk 0:01:22.7]} 20... Re5 {[%clk 0:01:13.9]} 21. Kf2
{[%clk 0:01:18.2]} 21... h5 {[%clk 0:01:09.8]} 22. gxh5 {[%clk 0:01:15.4]} 22...
g4 {[%clk 0:01:10.1]} 23. fxg4 {[%clk 0:01:09.1]} 23... Bxg4 {[%clk 0:01:11]}
24. Kg1 {[%clk 0:00:53.4]} 24... Qh4 {[%clk 0:00:41.9]} 25. Qe1 {[%clk 0:00:53]}
25... Qxe1 {[%clk 0:00:34.6]} 26. Raxe1 {[%clk 0:00:38]} 26... Rxe4 {[%clk
0:00:33.9]} 27. Bxg7 {[%clk 0:00:36]} 27... Rxe2 {[%clk 0:00:16.1]} 28. Bc3
{[%clk 0:00:26]} 28... Bxh5 {[%clk 0:00:06]} 29. Rxe2 {[%clk 0:00:25]} 29...
Bxe2 {[%clk 0:00:06.9]} 30. Rxf4 {[%clk 0:00:25.4]} 30... Re8 {[%clk 0:00:03.1]}
31. Kf2 {[%clk 0:00:19.2]} 31... Bd3 {[%clk 0:00:03.6]} 32. Rd4 {[%clk
0:00:18.9]} 32... Bg6 {[%clk 0:00:02.7]} 33. Kg3 {[%clk 0:00:18.8]} 33... Re3+
{[%clk 0:00:02.1]} 34. Kf4 {[%clk 0:00:18.7]} 34... Re8 {[%clk 0:00:03]} 35. g3
{[%clk 0:00:18.8]} 35... Re2 {[%clk 0:00:03.3]} 36. Rd1 {[%clk 0:00:17.5]} 36...
Rf2+ {[%clk 0:00:03.3]} 37. Ke3 {[%clk 0:00:17.6]} 37... Rg2 {[%clk 0:00:02.4]}
38. Kf3 {[%clk 0:00:14.5]} 38... Rc2 {[%clk 0:00:02.2]} 39. Rh1 {[%clk
0:00:13.2]} 39... Kf8 {[%clk 0:00:03.1]} 40. Bf6 {[%clk 0:00:12]} 40... Ke8
{[%clk 0:00:03.2]} 41. Rh8+ {[%clk 0:00:11.2]} 41... Kd7 {[%clk 0:00:03.8]} 42.
Rd8# {[%clk 0:00:11.7]} 1-0

[Event "*** SCC Grand Prix: Titled Tuesday Blitz"]
[Site "Chess.com"]
[Date "2020.07.14"]
[Round "5"]
[White "Joseacorrea"]
[Black "harlem4brew"]
[Result "1/2-1/2"]
[WhiteElo "1942"]
[BlackElo "2106"]
[TimeControl "180+1"]
[EndTime "10:56:37 PDT"]
[Termination "Game drawn by repetition"]

1. c4 {[%clk 0:02:58.6]} 1... e5 {[%clk 0:02:58.5]} 2. Nc3 {[%clk 0:02:58.2]}
2... Nf6 {[%clk 0:02:58]} 3. g3 {[%clk 0:02:58.7]} 3... d5 {[%clk 0:02:56.9]} 4.
cxd5 {[%clk 0:02:59.6]} 4... Nxd5 {[%clk 0:02:55.4]} 5. Bg2 {[%clk 0:03:00]}
5... Be6 {[%clk 0:02:51.2]} 6. Nf3 {[%clk 0:02:57.7]} 6... Nd7 {[%clk
0:02:46.5]} 7. O-O {[%clk 0:02:51.8]} 7... c6 {[%clk 0:02:44.1]} 8. d4 {[%clk
0:02:51.3]} 8... Nxc3 {[%clk 0:02:39]} 9. bxc3 {[%clk 0:02:50.4]} 9... exd4
{[%clk 0:02:29.5]} 10. Nxd4 {[%clk 0:02:46.1]} 10... Bc4 {[%clk 0:02:26]} 11.
Qa4 {[%clk 0:02:32.3]} 11... Nb6 {[%clk 0:02:25.2]} 12. Qc2 {[%clk 0:02:24.8]}
12... Be7 {[%clk 0:02:24.3]} 13. Rd1 {[%clk 0:02:16.9]} 13... O-O {[%clk
0:02:07.8]} 14. Nxc6 {[%clk 0:01:59.1]} 14... bxc6 {[%clk 0:01:50.1]} 15. Rxd8
{[%clk 0:01:57.4]} 15... Raxd8 {[%clk 0:01:49.7]} 16. Be3 {[%clk 0:01:56.2]}
16... Bf6 {[%clk 0:01:43.7]} 17. Bxc6 {[%clk 0:01:44]} 17... Rc8 {[%clk
0:01:35]} 18. Be4 {[%clk 0:01:21.4]} 18... h6 {[%clk 0:01:32.8]} 19. Bxb6 {[%clk
0:01:17.7]} 19... axb6 {[%clk 0:01:29.6]} 20. Rb1 {[%clk 0:01:11.9]} 20... b5
{[%clk 0:01:27]} 21. a4 {[%clk 0:01:11.2]} 21... bxa4 {[%clk 0:01:25.2]} 22.
Qxa4 {[%clk 0:01:07.2]} 22... Bxe2 {[%clk 0:01:24.4]} 23. Qc2 {[%clk 0:00:34.1]}
23... Bg4 {[%clk 0:01:13]} 24. c4 {[%clk 0:00:31.5]} 24... Be6 {[%clk
0:01:05.3]} 25. c5 {[%clk 0:00:29.1]} 25... Rfd8 {[%clk 0:01:01.4]} 26. c6
{[%clk 0:00:26.6]} 26... Rd6 {[%clk 0:01:00.6]} 27. Rd1 {[%clk 0:00:20]} 27...
Be7 {[%clk 0:00:55.3]} 28. Rxd6 {[%clk 0:00:18.7]} 28... Bxd6 {[%clk 0:00:53.4]}
29. Kg2 {[%clk 0:00:16.3]} 29... Bc7 {[%clk 0:00:50.1]} 30. Bf5 {[%clk
0:00:14.4]} 30... Bd5+ {[%clk 0:00:46.8]} 31. f3 {[%clk 0:00:13.4]} 31... Re8
{[%clk 0:00:45.1]} 32. Bd7 {[%clk 0:00:12.7]} 32... Re3 {[%clk 0:00:43.8]} 33.
Qd2 {[%clk 0:00:09.2]} 33... Bxf3+ {[%clk 0:00:42.5]} 34. Kf2 {[%clk 0:00:08.5]}
34... Re2+ {[%clk 0:00:42.4]} 35. Qxe2 {[%clk 0:00:08.8]} 35... Bxe2 {[%clk
0:00:43.3]} 36. Kxe2 {[%clk 0:00:09.6]} 36... Kf8 {[%clk 0:00:43.9]} 37. Ke3
{[%clk 0:00:10.5]} 37... Ke7 {[%clk 0:00:44.8]} 38. Kd4 {[%clk 0:00:11.3]} 38...
f6 {[%clk 0:00:44.8]} 39. Kc5 {[%clk 0:00:11.2]} 39... g5 {[%clk 0:00:44.6]} 40.
Kb5 {[%clk 0:00:11.7]} 40... h5 {[%clk 0:00:44.6]} 41. Ka6 {[%clk 0:00:12.6]}
41... Kd6 {[%clk 0:00:44.5]} 42. Kb7 {[%clk 0:00:12.9]} 42... h4 {[%clk
0:00:44.1]} 43. gxh4 {[%clk 0:00:12.6]} 43... gxh4 {[%clk 0:00:43.9]} 44. h3
{[%clk 0:00:13.2]} 44... Ba5 {[%clk 0:00:42.4]} 45. Bg4 {[%clk 0:00:11.6]} 45...
Bc7 {[%clk 0:00:40.9]} 46. Bf5 {[%clk 0:00:11.3]} 46... Bd8 {[%clk 0:00:40.6]}
47. Bg4 {[%clk 0:00:11.8]} 47... Ba5 {[%clk 0:00:39.6]} 48. Bf5 {[%clk 0:00:12]}
48... Bc7 {[%clk 0:00:38.9]} 49. Bg4 {[%clk 0:00:12.9]} 49... Ba5 {[%clk
0:00:38.8]} 50. Bf5 {[%clk 0:00:13.1]} 50... Bd8 {[%clk 0:00:39.1]} 51. Bg4
{[%clk 0:00:13.7]} 51... Bc7 {[%clk 0:00:38.5]} 52. Bf5 {[%clk 0:00:13.9]} 52...
Ba5 {[%clk 0:00:38.7]} 53. Bg4 {[%clk 0:00:14.5]} 53... Bc7 {[%clk 0:00:38.8]}
1/2-1/2

[Event "*** SCC Grand Prix: Titled Tuesday Blitz"]
[Site "Chess.com"]
[Date "2020.07.14"]
[Round "5"]
[White "TokChess"]
[Black "chargemax23"]
[Result "1-0"]
[WhiteElo "2442"]
[BlackElo "2660"]
[TimeControl "180+1"]
[EndTime "10:56:39 PDT"]
[Termination "TokChess won on time"]

1. Nf3 {[%clk 0:03:00.9]} 1... g6 {[%clk 0:02:58.7]} 2. d4 {[%clk 0:02:58.3]}
2... Bg7 {[%clk 0:02:58.7]} 3. Nc3 {[%clk 0:02:57.5]} 3... d5 {[%clk 0:02:57.9]}
4. Bf4 {[%clk 0:02:56.6]} 4... c6 {[%clk 0:02:55.8]} 5. h4 {[%clk 0:02:55.5]}
5... h5 {[%clk 0:02:48.3]} 6. e3 {[%clk 0:02:44.9]} 6... Bf5 {[%clk 0:02:41]} 7.
Bd3 {[%clk 0:02:44.4]} 7... e6 {[%clk 0:02:30.4]} 8. Ne5 {[%clk 0:02:28]} 8...
Nd7 {[%clk 0:02:27.6]} 9. Bxf5 {[%clk 0:02:19.4]} 9... exf5 {[%clk 0:02:24.3]}
10. Qd3 {[%clk 0:02:13.6]} 10... Ngf6 {[%clk 0:02:18.9]} 11. O-O-O {[%clk
0:02:13]} 11... Qe7 {[%clk 0:02:08.8]} 12. Kb1 {[%clk 0:02:12.6]} 12... Ne4
{[%clk 0:01:58.9]} 13. Nxe4 {[%clk 0:02:00.2]} 13... fxe4 {[%clk 0:01:58.2]} 14.
Qb3 {[%clk 0:02:00.3]} 14... Nxe5 {[%clk 0:01:54.4]} 15. Bxe5 {[%clk 0:01:57.2]}
15... Bxe5 {[%clk 0:01:53.5]} 16. dxe5 {[%clk 0:01:57.9]} 16... O-O-O {[%clk
0:01:50.8]} 17. Rd4 {[%clk 0:00:56.2]} 17... Qxe5 {[%clk 0:01:48.4]} 18. Rhd1
{[%clk 0:00:56.1]} 18... Rhe8 {[%clk 0:01:41.2]} 19. Qa4 {[%clk 0:00:50.3]}
19... a6 {[%clk 0:01:34.2]} 20. g3 {[%clk 0:00:42.6]} 20... f6 {[%clk
0:01:31.8]} 21. Qb4 {[%clk 0:00:36.7]} 21... g5 {[%clk 0:01:27.4]} 22. c4 {[%clk
0:00:31.7]} 22... gxh4 {[%clk 0:00:54.5]} 23. gxh4 {[%clk 0:00:31.9]} 23... Qc7
{[%clk 0:00:28.5]} 24. cxd5 {[%clk 0:00:26.1]} 24... c5 {[%clk 0:00:28.4]} 25.
d6 {[%clk 0:00:22.9]} 25... Rxd6 {[%clk 0:00:20.5]} 26. Rxd6 {[%clk 0:00:22.9]}
26... cxb4 {[%clk 0:00:20.4]} 27. Rc1 {[%clk 0:00:23.5]} 27... Rg8 {[%clk
0:00:14.3]} 28. Rxc7+ {[%clk 0:00:23]} 28... Kxc7 {[%clk 0:00:14.7]} 29. Rxf6
{[%clk 0:00:23.7]} 29... Rg4 {[%clk 0:00:15.2]} 30. Rf4 {[%clk 0:00:19.9]} 30...
Rxf4 {[%clk 0:00:14.9]} 31. exf4 {[%clk 0:00:20.4]} 31... Kd6 {[%clk 0:00:15.5]}
32. Kc2 {[%clk 0:00:21]} 32... Ke6 {[%clk 0:00:15.9]} 33. Kd2 {[%clk 0:00:21.3]}
33... Kf5 {[%clk 0:00:16.1]} 34. Ke3 {[%clk 0:00:21.7]} 34... a5 {[%clk
0:00:16.4]} 35. f3 {[%clk 0:00:21.6]} 35... exf3 {[%clk 0:00:15.8]} 36. Kxf3
{[%clk 0:00:22]} 36... b6 {[%clk 0:00:14.6]} 37. b3 {[%clk 0:00:20.8]} 37... b5
{[%clk 0:00:14.3]} 38. Ke3 {[%clk 0:00:19.5]} 38... Kg4 {[%clk 0:00:10.7]} 39.
Ke4 {[%clk 0:00:19.9]} 39... Kxh4 {[%clk 0:00:11.1]} 40. f5 {[%clk 0:00:20.1]}
40... Kg5 {[%clk 0:00:11.4]} 41. Ke5 {[%clk 0:00:20.5]} 41... h4 {[%clk
0:00:11.5]} 42. f6 {[%clk 0:00:21]} 42... Kg6 {[%clk 0:00:04.9]} 43. Ke6 {[%clk
0:00:20.8]} 43... h3 {[%clk 0:00:05.3]} 44. f7 {[%clk 0:00:20.8]} 44... h2
{[%clk 0:00:04.5]} 45. f8=Q {[%clk 0:00:20.4]} 1-0

[Event "*** SCC Grand Prix: Titled Tuesday Blitz"]
[Site "Chess.com"]
[Date "2020.07.14"]
[Round "5"]
[White "Pintacara"]
[Black "Mikasinski"]
[Result "0-1"]
[WhiteElo "2320"]
[BlackElo "2493"]
[TimeControl "180+1"]
[EndTime "10:56:39 PDT"]
[Termination "Mikasinski won on time"]

1. d4 {[%clk 0:03:00.9]} 1... Nf6 {[%clk 0:02:59.8]} 2. Bg5 {[%clk 0:02:56.5]}
2... Ne4 {[%clk 0:02:59.6]} 3. Bh4 {[%clk 0:02:55.2]} 3... d5 {[%clk 0:02:58]}
4. f3 {[%clk 0:02:53.2]} 4... Nf6 {[%clk 0:02:57.8]} 5. Nc3 {[%clk 0:02:52.6]}
5... e6 {[%clk 0:02:54.3]} 6. e4 {[%clk 0:02:50.9]} 6... dxe4 {[%clk 0:02:54.1]}
7. fxe4 {[%clk 0:02:51.8]} 7... Be7 {[%clk 0:02:54]} 8. Bf2 {[%clk 0:02:44.1]}
8... b6 {[%clk 0:02:46.4]} 9. Nf3 {[%clk 0:02:43.5]} 9... Bb7 {[%clk 0:02:46.1]}
10. Bd3 {[%clk 0:02:43.9]} 10... Ng4 {[%clk 0:02:43.9]} 11. Bg1 {[%clk
0:02:38.3]} 11... O-O {[%clk 0:02:37.2]} 12. h3 {[%clk 0:02:37.3]} 12... Bh4+
{[%clk 0:02:32.4]} 13. Kf1 {[%clk 0:02:34]} 13... Nh6 {[%clk 0:02:26.5]} 14. Be3
{[%clk 0:02:31.6]} 14... f5 {[%clk 0:02:15.6]} 15. Bxh6 {[%clk 0:02:15.8]} 15...
fxe4 {[%clk 0:02:09.6]} 16. Bxe4 {[%clk 0:02:03.8]} 16... Bxe4 {[%clk
0:02:06.7]} 17. Nxe4 {[%clk 0:02:04.7]} 17... gxh6 {[%clk 0:02:02.5]} 18. Ke2
{[%clk 0:02:00.1]} 18... Bf6 {[%clk 0:01:45.9]} 19. c3 {[%clk 0:01:59.7]} 19...
Qd5 {[%clk 0:01:43]} 20. Qd3 {[%clk 0:01:55.2]} 20... Nd7 {[%clk 0:01:40.2]} 21.
g4 {[%clk 0:01:43.6]} 21... Bg7 {[%clk 0:01:35.9]} 22. Raf1 {[%clk 0:01:40.9]}
22... Rf4 {[%clk 0:01:25.2]} 23. Nfd2 {[%clk 0:01:35.3]} 23... Raf8 {[%clk
0:01:23.4]} 24. Rxf4 {[%clk 0:01:34.2]} 24... Rxf4 {[%clk 0:01:23.2]} 25. Rf1
{[%clk 0:01:34.8]} 25... Rxf1 {[%clk 0:01:20.5]} 26. Nxf1 {[%clk 0:01:35.7]}
26... Qxa2 {[%clk 0:01:19.9]} 27. Qc2 {[%clk 0:01:23.5]} 27... c5 {[%clk
0:01:12.1]} 28. dxc5 {[%clk 0:01:15.7]} 28... bxc5 {[%clk 0:01:06.3]} 29. Ne3
{[%clk 0:01:12.5]} 29... Qa6+ {[%clk 0:00:49.3]} 30. Kf2 {[%clk 0:00:58.5]}
30... Qc6 {[%clk 0:00:41.5]} 31. Nc4 {[%clk 0:00:52]} 31... Qd5 {[%clk
0:00:40.4]} 32. Qe2 {[%clk 0:00:28.4]} 32... Nb6 {[%clk 0:00:33.2]} 33. Ncd2
{[%clk 0:00:23.9]} 33... c4 {[%clk 0:00:30.5]} 34. Qe3 {[%clk 0:00:21]} 34...
Qe5 {[%clk 0:00:26.5]} 35. Nf3 {[%clk 0:00:17.3]} 35... Qb5 {[%clk 0:00:23]} 36.
g5 {[%clk 0:00:15.9]} 36... Qxb2+ {[%clk 0:00:22.7]} 37. Kg3 {[%clk 0:00:16.3]}
37... Nd5 {[%clk 0:00:21.4]} 38. Qc5 {[%clk 0:00:14.3]} 38... Qb8+ {[%clk
0:00:19.9]} 39. Kf2 {[%clk 0:00:10]} 39... Qc7 {[%clk 0:00:19.7]} 0-1

[Event "*** SCC Grand Prix: Titled Tuesday Blitz"]
[Site "Chess.com"]
[Date "2020.07.14"]
[Round "5"]
[White "velemajstor767276"]
[Black "Omk124"]
[Result "0-1"]
[WhiteElo "2520"]
[BlackElo "2379"]
[TimeControl "180+1"]
[EndTime "10:56:41 PDT"]
[Termination "Omk124 won on time"]

1. d4 {[%clk 0:03:00.9]} 1... Nf6 {[%clk 0:02:58.7]} 2. Bg5 {[%clk 0:03:00.5]}
2... d5 {[%clk 0:02:58.1]} 3. Bxf6 {[%clk 0:02:57.5]} 3... exf6 {[%clk 0:02:59]}
4. e3 {[%clk 0:02:58.4]} 4... Bd6 {[%clk 0:02:58.7]} 5. g3 {[%clk 0:02:57.5]}
5... O-O {[%clk 0:02:58.4]} 6. Bg2 {[%clk 0:02:57.8]} 6... c6 {[%clk 0:02:58.9]}
7. Ne2 {[%clk 0:02:57.4]} 7... Bf5 {[%clk 0:02:59.1]} 8. O-O {[%clk 0:02:54.9]}
8... Nd7 {[%clk 0:02:57.9]} 9. Nd2 {[%clk 0:02:53.2]} 9... Re8 {[%clk
0:02:56.8]} 10. c4 {[%clk 0:02:52.8]} 10... dxc4 {[%clk 0:02:56.2]} 11. Nxc4
{[%clk 0:02:53.7]} 11... Bf8 {[%clk 0:02:56.8]} 12. a4 {[%clk 0:02:52.4]} 12...
Nb6 {[%clk 0:02:56.4]} 13. Nd2 {[%clk 0:02:32.2]} 13... Bg6 {[%clk 0:02:52.7]}
14. a5 {[%clk 0:02:30.7]} 14... Nd5 {[%clk 0:02:52.1]} 15. Qb3 {[%clk
0:02:23.7]} 15... Rb8 {[%clk 0:02:32.6]} 16. Nc3 {[%clk 0:02:21]} 16... Nb4
{[%clk 0:02:24.5]} 17. Be4 {[%clk 0:02:11.6]} 17... f5 {[%clk 0:02:04.9]} 18.
Bg2 {[%clk 0:02:07]} 18... f4 {[%clk 0:02:05.2]} 19. gxf4 {[%clk 0:01:46.8]}
19... Bc2 {[%clk 0:02:02.9]} 20. Qa3 {[%clk 0:01:43.9]} 20... Bd3 {[%clk
0:01:59.4]} 21. Qb3 {[%clk 0:01:35.6]} 21... Bc2 {[%clk 0:01:54.4]} 22. Qa3
{[%clk 0:01:31.5]} 22... Bd3 {[%clk 0:01:49.6]} 23. Qa4 {[%clk 0:01:20.9]} 23...
Bxf1 {[%clk 0:01:45.8]} 24. Nxf1 {[%clk 0:01:21.8]} 24... a6 {[%clk 0:01:37.5]}
25. Ng3 {[%clk 0:01:20]} 25... Qd7 {[%clk 0:01:30.9]} 26. Rd1 {[%clk 0:01:12.2]}
26... Rbd8 {[%clk 0:01:26]} 27. Qb3 {[%clk 0:01:04.7]} 27... Qc7 {[%clk
0:01:20.9]} 28. Ra1 {[%clk 0:01:00]} 28... Qd6 {[%clk 0:01:07.3]} 29. f5 {[%clk
0:00:51.2]} 29... Qc7 {[%clk 0:00:56.9]} 30. Nce4 {[%clk 0:00:48.6]} 30... Nd5
{[%clk 0:00:53.3]} 31. Qc4 {[%clk 0:00:36.5]} 31... Bb4 {[%clk 0:00:40.7]} 32.
f6 {[%clk 0:00:27.4]} 32... g6 {[%clk 0:00:36.6]} 33. Nc3 {[%clk 0:00:11.7]}
33... Bxc3 {[%clk 0:00:27.6]} 34. bxc3 {[%clk 0:00:07.8]} 34... Nxf6 {[%clk
0:00:27.6]} 35. e4 {[%clk 0:00:08.2]} 35... Qe7 {[%clk 0:00:21.8]} 36. Rf1
{[%clk 0:00:05.4]} 36... Qe6 {[%clk 0:00:20.2]} 37. Qb4 {[%clk 0:00:05.3]} 37...
Qe7 {[%clk 0:00:20.3]} 38. Qb3 {[%clk 0:00:04.6]} 38... Qc7 {[%clk 0:00:20.5]}
39. Qb4 {[%clk 0:00:03.7]} 39... h5 {[%clk 0:00:20.8]} 40. e5 {[%clk 0:00:03.4]}
40... Nd5 {[%clk 0:00:20.5]} 41. Ne4 {[%clk 0:00:03.7]} 41... Nxb4 {[%clk
0:00:19]} 42. Nf6+ {[%clk 0:00:02.3]} 42... Kg7 {[%clk 0:00:19.5]} 43. cxb4
{[%clk 0:00:01.6]} 43... Re6 {[%clk 0:00:18.8]} 0-1